Cogmind - Beta 14 @@@ ROGUE MODE // 2025.03.10 @ 13:08:42 Player: beter Result: Self-destructed Performance ------------- Evolutions (1) 500 Regions Visited (3) 600 Robots Destroyed (10) 50 Value Destroyed (343) 343 Prototype IDs (0) 0 Alien Tech Used (0) 0 Bonus (0) 0 TOTAL SCORE: 1493 Bonus ------- None Cogmind --------- Core Integrity 400/400 Matter 276/300 Energy 85/250 System Corruption 0% Temperature Warning (308) Movement Treading (160) Location -9/Mines Parts ------- > --- POWER (1) -------- Ion Engine > --- PROPULSION (2) --- Light Treads Light Treads > --- UTILITY (2) ------ Medium Storage Unit Medium Armor Plating > --- WEAPON (4) ------- Light EM Pulse Cannon Light EM Pulse Cannon Shotgun Shotgun > --- INVENTORY (10) --- Ion Engine Light Ion Engine Aluminum Leg Aluminum Leg Wheel Wheel Small Storage Unit Particle Gun Particle Gun Light EM Pulse Cannon Peak State ------------ > --- POWER ------------ Ion Engine > --- PROPULSION ------- Light Treads Light Treads > --- UTILITY ---------- Medium Storage Unit Medium Armor Plating > --- WEAPON ----------- Light EM Pulse Cannon Light EM Pulse Cannon Shotgun Shotgun > --- INVENTORY -------- Light Ion Engine Aluminum Leg Aluminum Leg Wheel Wheel Small Storage Unit Particle Gun Light EM Pulse Cannon [Rating: 15] Favorites ----------- Power Ion Engine Engine Ion Engine Propulsion Light Treads Treads Light Treads Leg Aluminum Leg Utility Medium Armor Plating Storage Small Storage Unit Protection Medium Armor Plating Weapon Shotgun Energy Gun Small Laser Energy Cannon Light EM Pulse Cannon Ballistic Gun Shotgun Build | -11 -10 -9 -9 ------- Run | Yrd Mat Mat Min Slots Evolved 2 | . . 2 . Power . | . . . . Propulsion . | . . . . Utility . | . . . . Weapon 2 | . . 2 . Parts Attached 14 | 6 5 3 . Power 1 | 1 . . . Engine 1 | 1 . . . Core . | . . . . Reactor . | . . . . Propulsion 4 | 2 2 . . Treads 2 | . 2 . . Leg 2 | 2 . . . Wheel . | . . . . Hover . | . . . . Flight . | . . . . Utility 3 | 1 1 1 . Device . | . . . . Storage 2 | 1 . 1 . Processor . | . . . . Hackware . | . . . . Protection 1 | . 1 . . Artifact . | . . . . Weapon 6 | 2 2 2 . Energy Gun 1 | 1 . . . Energy Cannon 2 | . 1 1 . Ballistic Gun 3 | 1 1 1 . Ballistic Cannon . | . . . . Launcher . | . . . . Special Weapon . | . . . . Impact Weapon . | . . . . Slashing Weapon . | . . . . Piercing Weapon . | . . . . Special Melee Weapon . | . . . . Unidentified Prototypes . | . . . . Parts Lost . | . . . . Power . | . . . . Propulsion . | . . . . Utility . | . . . . Weapon . | . . . . Highest Loss Streak . | . . . . To Critical Strikes . | . . . . Average Slot Usage (%) 98 | . 95 100 100 Engine 12 | . 14 11 11 Treads 21 | . 21 22 22 Leg 2 | . 6 . . Storage 12 | . 14 11 11 Protection 10 | . 10 11 11 Energy Cannon 18 | . 11 22 22 Ballistic Gun 19 | . 14 22 22 Peak Build Rating 15 | 6 11 15 15 Average Rating 11 | 4 10 14 15 On Entrance 8 | . 6 11 15 Naked Turns . | . . . . Heaviest Build 36 | 12 24 36 36 Greatest Support 40 | 20 40 40 40 Greatest Overweight (x) . | . . . . Average Overweight (x) . | . . . . Largest Inventory Capacity 10 | 8 8 10 10 Average Capacity 8 | 7 8 8 10 Most Carried 10 | 6 8 9 10 Average Carried 7 | 3 7 7 9 Final Capacity 10 | 8 8 10 10 Final Carried 10 | 6 8 9 10 Class Distribution -------------------- 56% | Tank 43% | Mutant Dominant Class ---------------- Mutant | -10/Materials Tank | -9/Materials Tank | -9/Mines Resources | -11 -10 -9 -9 ----------- Run | Yrd Mat Mat Min Matter Collected 432 | 227 45 128 32 Remotely . | . . . . Salvage Created 471 | . 92 189 190 Parts 20 | . 5 6 9 Haulers Intercepted . | . . . . Recyclers Shooed . | . . . . Parts Field Recycled . | . . . . Retrieved Matter . | . . . . Parts Self-Destructed . | . . . . Prevented . | . . . . Kills | -11 -10 -9 -9 ------- Run | Yrd Mat Mat Min Combat Hostiles Destroyed 11 | . 2 2 7 Guns 4 | . 1 1 2 Cannons 7 | . 1 1 5 Classes Destroyed 4 | . 1 2 1 Watcher 3 | . . 3 . Grunt 6 | . 2 1 3 Sentry 1 | . . 1 . Assembled 4 | . . . 4 Best Kill Streak 4 | . 2 3 4 Combat Bots Only 4 | . 2 1 4 Max Kills in Single Turn 2 | . 1 1 2 Gunslinging . | . . . . Exploded . | . . . . Melee . | . . . . Uniques/NPCs Destroyed . | . . . . Combat | -11 -10 -9 -9 -------- Run | Yrd Mat Mat Min Hostile Shots Fired 28 | . 8 2 18 Missed 12 | . 3 1 8 Damage Taken 223 | . 68 12 143 Core 12 | . 12 . . Absorbed by Shields . | . . . . Core Remaining (%) 97 | 100 95 . . Volleys Fired 17 | . 5 5 7 Largest 4 | . 2 4 4 Hottest 158 | . 79 158 158 Shots Fired 58 | . 10 20 28 Gun 29 | . 5 10 14 Cannon 29 | . 5 10 14 Launcher . | . . . . Special . | . . . . Kinetic 29 | . 5 10 14 Thermal . | . . . . Explosive . | . . . . Electromagnetic 29 | . 5 10 14 Robot Hit Streak 8 | . 2 8 6 Robot Miss Streak 3 | . 2 1 3 Penetration Max . | . . . . Secondary Targets . | . . . . Shots Hit Robots 25 | . 7 8 10 Core Hits 21 | . 4 6 11 Critical Kills . | . . . . Critical Parts Destroyed . | . . . . Critical Strikes . | . . . . Melee Attacks . | . . . . Impact . | . . . . Slashing . | . . . . Piercing . | . . . . Sneak Attacks . | . . . . Combat Hostiles . | . . . . Follow-up Attacks . | . . . . Damage Inflicted 724 | . 133 276 315 Guns 167 | . 40 41 86 Cannons 483 | . 93 196 194 Explosions 74 | . . 39 35 Melee . | . . . . Ramming . | . . . . Kinetic 167 | . 40 41 86 Thermal 74 | . . 39 35 Explosive . | . . . . Electromagnetic 483 | . 93 196 194 Impact . | . . . . Slashing . | . . . . Piercing . | . . . . Highest Corruption . | . . . . Average Corruption . | . . . . Corruption Purged . | . . . . Corruption Blocked . | . . . . Overload Shots . | . . . . Overflow Damage 17 | . . 16 1 Projectiles 17 | . . 16 1 Explosions . | . . . . Melee . | . . . . Knockbacks . | . . . . Impact . | . . . . Kinetic . | . . . . Secondary . | . . . . Self-Inflicted Damage . | . . . . Shots . | . . . . Rammed . | . . . . Targets Rammed . | . . . . Kicked . | . . . . Crushed . | . . . . Highest Temperature 308 | . 165 152 308 Average Temperature 90 | . 87 62 117 Received Heat Transfer 112 | . 36 . 76 Effects 1 | . . . 1 Energy Bleed 1 | . . . 1 Siege Activations . | . . . . Robots Corrupted . | . . . . Combat Hostiles . | . . . . Parts Fried 2 | . 1 1 . Impact Corruptions . | . . . . Robots Melted . | . . . . Combat Hostiles . | . . . . Parts Melted . | . . . . Heat Transferred 100 | . . 50 50 Parts Sabotaged . | . . . . Parts Stolen . | . . . . Parts Stripped . | . . . . Power Chain Reactions 2 | . . 1 1 Alert | -11 -10 -9 -9 ------- Run | Yrd Mat Mat Min Peak Influence 145 | . 50 139 145 Initial 54 | . . 20 54 Average 58 | . 19 69 124 Maximum Alert Level . | . . . . Low Security (%) 100 | 100 100 100 100 Level 1 . | . . . . Level 2 . | . . . . Level 3 . | . . . . Level 4 . | . . . . Level 5 . | . . . . High Security . | . . . . Max Security . | . . . . Squads Dispatched . | . . . . Investigation . | . . . . Extermination . | . . . . Reinforcement . | . . . . Assault . | . . . . Garrison . | . . . . Intercept . | . . . . Searches Triggered . | . . . . Construction Impeded . | . . . . Haulers Reinforced . | . . . . Active Scanning Responses . | . . . . Cargo Convoy Interrupts . | . . . . Stealth | -11 -10 -9 -9 --------- Run | Yrd Mat Mat Min Distress Signals 1 | . . 1 . Communications Jammed . | . . . . Distress Signals . | . . . . Times Spotted 21 | . 2 8 11 Peak Tracking Total 9 | . 2 3 9 Tactical Retreats . | . . . . Traps | -11 -10 -9 -9 ------- Run | Yrd Mat Mat Min Traps Triggered . | . . . . Indirectly . | . . . . Trap Hack Attempts . | . . . . Triggered . | . . . . Disarmed . | . . . . Reprogrammed . | . . . . Reused . | . . . . Traps Extracted . | . . . . Installed . | . . . . Triggered . | . . . . Machines | -11 -10 -9 -9 ---------- Run | Yrd Mat Mat Min Machines Disabled 2 | . . 1 1 Max in Single Turn 1 | . . 1 1 Machines Repaired . | . . . . Machines Dismantled . | . . . . Machines Sabotaged . | . . . . Overloaded Fab Kills . | . . . . Hacking | -11 -10 -9 -9 --------- Run | Yrd Mat Mat Min Machines Accessed 2 | . . 2 . Terminals 2 | . . 2 . Fabricators . | . . . . Repair Stations . | . . . . Recycling Units . | . . . . Scanalyzers . | . . . . Garrison Access . | . . . . Total Hacks 3 | . . 3 . Successful 1 | . . 1 . Failed 2 | . . 2 . Catastrophic 1 | . . 1 . Database Lockouts . | . . . . Manual 1 | . . 1 . Terminals 3 | . . 3 . Fabricators . | . . . . Repair Stations . | . . . . Recycling Units . | . . . . Scanalyzers . | . . . . Garrison Access . | . . . . Terminal Hacks 1 | . . 1 . Record 1 | . . 1 . Fabricator Hacks . | . . . . Repair Station Hacks . | . . . . Recycling Unit Hacks . | . . . . Scanalyzer . | . . . . Garrison Access Hacks . | . . . . Unauthorized Hacks . | . . . . Terminals . | . . . . Fabricators . | . . . . Repair Stations . | . . . . Recycling Units . | . . . . Scanalyzers . | . . . . Garrison Access . | . . . . Data Cores Recovered . | . . . . Used . | . . . . Hacking Detections 1 | . . 1 . Full Trace Events . | . . . . Feedback Events . | . . . . Feedback Blocked . | . . . . Robot Schematics Acquired . | . . . . Robots Built . | . . . . Authchips . | . . . . Time . | . . . . Total Robot Build Rating . | . . . . Part Schematics Acquired . | . . . . Parts Built . | . . . . Authchips . | . . . . Time . | . . . . Total Part Build Rating . | . . . . Parts Repaired . | . . . . Time . | . . . . Parts Recycled . | . . . . Recycled Matter . | . . . . Retrieved Matter . | . . . . Retrieved Components . | . . . . Parts Scanalyzed . | . . . . Part Schematics Acquired . | . . . . Parts Damaged . | . . . . Bothacking | -11 -10 -9 -9 ------------ Run | Yrd Mat Mat Min Used RIF Installer . | . . . . Robots Hacked . | . . . . Non-combat . | . . . . Combat . | . . . . Robot Hacks Applied . | . . . . Relay Couplers Released . | . . . . Fabnet Peak Effective % . | . . . . Robots Rewired . | . . . . Allies Hacked . | . . . . Hacks Repelled . | . . . . Allies | -11 -10 -9 -9 -------- Run | Yrd Mat Mat Min Total Allies . | . . . . Largest Group . | . . . . Highest-Rated Group . | . . . . Highest-Rated Ally . | . . . . Total Orders . | . . . . Ally Attacks . | . . . . Total Damage . | . . . . Kills . | . . . . Allies Corrupted . | . . . . Allies Melted . | . . . . Intel | -11 -10 -9 -9 ------- Run | Yrd Mat Mat Min Robot Analysis Total . | . . . . Derelict Logs Recovered . | . . . . Drone Launches . | . . . . Drone Recoveries . | . . . . Exploration | -11 -10 -9 -9 ------------- Run | Yrd Mat Mat Min Turns Passed 565 | 86 163 176 140 Spaces Moved 306 | 66 91 85 64 Core 11 | 11 . . . Treads 217 | . 68 85 64 Legs 78 | 55 23 . . Wheels . | . . . . Hover . | . . . . Flight . | . . . . Fastest Speed 50 | 50 120 160 160 Average Speed 145 | 108 149 160 160 Slowest Speed 160 | 120 160 160 160 Overloaded Moves . | . . . . Propulsion Burnouts . | . . . . Robots Hopped . | . . . . Cave-ins Triggered . | . . . . Exploration Rate (%) 10 | 5 12 12 12 Regions Visited 3 Branch Regions 1 Pre-discovered Areas . | . . . . Known Exits Taken . | . . . . Unknown Exits Taken 3 | 1 1 1 . Scrap Searched . | . . . . Spaces Dug . | . . . . Terrain Destroyed 11 | . . 3 8 Melee . | . . . . Projectile . | . . . . AOE 11 | . . 3 8 Terrain Rammed . | . . . . Walls Destroyed . | . . . . Machines Disabled . | . . . . Actions | -11 -10 -9 -9 --------- Run | Yrd Mat Mat Min Total 380 | 77 107 112 84 Wait 31 | . 1 18 12 Move 303 | 65 90 84 64 Hop . | . . . . Pick Up 12 | 6 3 2 1 Fast Attach 9 | 6 3 . . Attach 2 | . . 2 . Detach . | . . . . Swap 3 | . 2 1 . Drop 3 | . 3 . . Fire 17 | . 5 5 7 Melee . | . . . . Ram . | . . . . Kick . | . . . . Crush . | . . . . Escape Stasis . | . . . . Rewire . | . . . . Trap . | . . . . Miscellaneous . | . . . . Route ------- -11/Scrapyard -10/Materials -9/Materials -9/Mines History --------- Turn | Location | Event 6 | -11/Scrapyard | Discovered new exit (range 16) 87 | -11/Scrapyard | Entered Materials 241 | -10/Materials | Discovered new exit (range 5) 250 | -10/Materials | Entered another Materials area 250 | -9/Materials | Evolved 2 slots: Weapon x2 408 | -9/Materials | Discovered new exit (range 11) 426 | -9/Materials | Entered Mines 539 | -9/Mines | Assembled infested the area 557 | -9/Mines | Build established: Tank 566 | -9/Mines | Self-destructed Last Messages --------------- 00411_ U-05 Engineer builds a Wall. 00412_ K-01 Serf collects debris. LOCATION=UNKNOWN GOAL=ESCAPE Something is scanning the area. 00448_ Chain reaction triggered in Lgt. Nuclear Core. 00448_ Seismic Survey Station disabled. 00448_ G-47 Trooper destroyed. 00469_ G-34 Mercenary destroyed. 00478_ Acquired 32 matter. 00492_ Acquired Particle Gun. 00539_ ALERT: Infestation in the mines, dispatching Demolisher response squad. 00556_ as-22314 destroyed. 00556_ as-56436 destroyed. 00563_ Destroyed Asb. F-torch. 00563_ as-37521 destroyed. 00563_ as-82762 destroyed. 00565_ Overheating: Energy bleed (-19). Map ----- +----------------------------------------------------+ | ??????#######?????????????????????????? | | ???####"#"" #?????????????????????????? | | ???# " #####?????????????????????? | | ???# " =%""# ##????????????????????? | | ???# " = #????????????????????? | | ???# " * #????????????????????? | | ???# ### [%=#????????????????????? | | ???# """ #?##%=[#????????????????????? | | ???# """ #?##! ##????????????????????? | | ???# """ #?# ##????????????????????? | | ???# #?# ####?????????????????? | | ???# #?# ####??????????????? | | ???########## ##?????????????? | | ??????????## #?????????????? | | ??????????# ##????????????? | | ??????????# #????????????? | | ??????????## """ #????????????? | | ???????????## """ ##????????????? | | ????????????## """ ##?????????????? | | ?????????????## ##??????????????? | | ??????????????## #???????????????? | | ??????????????## ##???????????????? | | ?????????????## ##????????????????? | | ?????????????# ##?????????????????? | | ?????????????# ####??????????????????? | | ?????????????#@##?????????????????????? | | ?????????????#a#??????????????????????? | | ?????????????#a#??????????????????????? | | ?????????????#a#??????????????????????? | | ?????????????a%#??????????????????????? | | ?????????????#% ??????????????????????? | | ?????????????# ??????????????????????? | | ?????????????###??????????????????????? | | ??????????????????????????????????????? | | ??????????????????????????????????????? | | ??????????????????????????????????????? | | ??????????????????????????????????????? | | ??????????????????????????????????????? | | ??????????????????????????????????????? | | ??????????????????????????????????????? | | ??????????????????????????????????????? | | ??????????????????????????????????????? | | ??????????????????????????????????????? | | ??????????????????????????????????????? | | ??????????????????????????????????????? | | ??????????????????????????????????????? | | ??????????????????????????????????????? | | ??????????????????????????????????????? | | ??????????????????????????????????????? | | ??????????????????????????????????????? | +----------------------------------------------------+ Best States ------------- Heat Dissipation 28 Energy Generation 10 Energy Capacity 250 Matter Stores 300 Matter Capacity 300 Sight Range 16 Terrain Scan Density 10 Armor Coverage 225 Evasion (%) 55 Recoil Reduction 2 Item Schematics ----------------- None Robot Schematics ------------------ None Fabricated ------------ Nothing Alien Tech Used ----------------- None Achievements -------------- None Challenges ------------ None Game ------ Seed ArmageddonDeepBlaster Manual? 0 Play Time 00:10:15 Cumulative 9.2 hours Start 2024.11.08 @ 22:15:36 End 2025.03.10 @ 13:08:42 Sessions 5 Manual Loads 0 Difficulty Rogue Special Mode None Game No. 9 Rogue 9 Adventurer 0 Explorer 0 Win Type - Total 0 Types 0/0/0/0/0/0/0/0/0 Lore% 5 Gallery% 20 Achievement% 13 Wizard Run 0 Options --------- Layout 1 ASCII 0 Keyboard 0 Movement Mouse Keybinds 0 Fullscreen 1 Font 32/SmallcapsGlow Map View 50x35 Zoom Use 0% Tactical HUD 1 Map Filters NONE Filters NONE Steam 1 RUN: 17550fa2-0514-4636-82e2-9393d1c0b49f